bitfinex/quotes_ETHUSD_20250827
["timestamp","ask_amount","ask_price","bid_price","bid_amount"]
[1756326930019,0.02,4594.8,4594.0,1.674]
[1756326930324,0.02,4594.8,4594.2,2.17665577]
[1756326930828,0.02,4594.8,4594.0,1.674]
[1756326931153,0.02,4594.8,4594.1,2.1767049]
[1756326931154,0.1088,4594.2,4594.1,2.1767049]
[1756326931354,0.02,4594.8,4594.5,2.17651346]
[1756326931520,0.02,4594.8,4594.5,2.17650952]
[1756326931721,0.02,4594.8,4594.5,2.28530952]
[1756326931921,0.02,4594.8,4594.6,2.17646533]
[1756326932159,0.02,4594.8,4594.7,2.17642065]
[1756326932381,0.02,4594.8,4594.7,2.73139269]
[1756326932546,0.02,4594.8,4594.7,0.1088]
[1756326933370,0.02,4594.8,4594.7,2.28522065]
[1756326933530,0.02,4594.8,4594.7,2.61562065]
[1756326933731,0.02,4594.8,4594.7,5.61562065]
[1756326933963,0.02,4594.8,4594.7,8.76401194]
[1756326934168,0.02,4594.8,4594.7,10.16122065]
[1756326934643,0.02,4594.8,4594.7,10.16022065]
[1756326934836,0.02,4594.8,4594.7,7.9838]
[1756326935158,0.02,4594.8,4594.7,7.9818]
[1756326935357,0.02,4594.8,4594.7,10.75667534]
[1756326937249,0.02,4594.8,4594.7,10.15322065]
[1756326937685,0.02,4594.8,4594.7,3.1088]
[1756326938674,0.02,4594.8,4594.7,5.17642065]
[1756326940907,0.02,4594.8,4594.7,10.03742065]
[1756326941706,0.02,4594.8,4594.7,10.36792065]
[1756326941907,0.02,4595.8,4595.7,2.17594708]
[1756326942119,0.02,4595.8,4595.7,6.531]
[1756326942619,0.4608,4595.8,4595.1,2.17619379]
[1756326942816,0.4608,4595.8,4595.0,1.673]
[1756326942971,0.1088,4595.4,4595.0,1.673]
[1756326943167,0.4408,4595.3,4594.4,0.1088]
[1756326943372,0.4408,4595.3,4594.4,2.17651804]
[1756326943373,0.1088,4594.8,4594.4,2.17651804]
[1756326943667,0.1088,4594.8,4594.1,2.28547553]
[1756326943668,0.1088,4594.8,4594.1,0.1088]
[1756326943910,3.40922065,4594.7,4593.7,3.948]
[1756326944079,2.96861014,4594.3,4593.7,0.001]
[1756326944285,2.96884705,4593.8,4593.7,0.001]
[1756326944528,2.17685588,4593.8,4591.9,1.47662696]
[1756326944678,2.17728482,4592.9,4591.9,4.276]
[1756326944984,0.792,4594.4,4592.0,0.22267486]
[1756326945179,0.792,4594.4,4592.1,0.20089786]
[1756326945379,0.792,4594.2,4592.1,0.20089786]
[1756326945605,0.792,4594.0,4592.1,4.85]
[1756326945779,0.792,4593.8,4592.1,4.85]
[1756326946106,0.792,4593.5,4592.2,3.20095444]
[1756326946404,0.792,4593.5,4591.8,3.87076481]
[1756326946405,0.4408,4593.4,4591.8,1.693]
[1756326946611,2.17757495,4592.3,4591.8,0.02]
[1756326946772,0.792,4592.9,4591.8,0.02]
[1756326946977,2.17748213,4592.5,4591.8,0.02]
[1756326947207,2.17751871,4592.4,4591.8,0.02]
[1756326947400,0.4608,4592.8,4591.8,0.02]
[1756326947782,2.17742432,4592.6,4591.8,0.02]
[1756326947989,2.17737323,4592.7,4591.8,0.02]
[1756326948189,3.85023272,4593.0,4591.8,0.02]
[1756326948190,0.4608,4592.9,4591.8,0.02]
[1756326948522,2.17774777,4591.9,4591.8,0.02]
[1756326948675,2.96974777,4591.9,4591.8,0.02]
[1756326948881,2.96974777,4591.9,4590.4,0.20231245]
[1756326948882,2.17822213,4590.9,4590.4,0.20231245]
[1756326949118,2.17814744,4591.1,4590.4,0.001]
[1756326949119,2.17814617,4591.1,4590.4,0.001]
[1756326949292,0.4608,4590.9,4590.4,0.001]
[1756326949490,2.17784262,4591.7,4590.4,0.001]
[1756326949796,2.17760247,4592.3,4591.0,2.17816699]
[1756326950001,0.4608,4593.3,4591.2,3.0]
[1756326950201,0.4608,4593.3,4591.3,0.02178032]
[1756326950202,2.63788748,4593.3,4591.3,0.02178032]
[1756326950420,2.63788748,4593.3,4591.2,5.17805735]
[1756326950421,2.17731638,4592.9,4591.2,3.0]
[1756326950717,0.4608,4593.3,4592.0,2.17767062]
[1756326950898,0.4608,4594.0,4592.2,3.0]
[1756326951099,2.17681394,4593.9,4592.4,2.17750567]
[1756326951313,0.4608,4594.0,4592.3,1.674]
[1756326951314,2.17699732,4593.5,4592.3,1.674]
[1756326951516,0.4608,4594.0,4592.4,4.84]
[1756326951701,0.792,4593.9,4592.3,1.674]
[1756326952019,2.17731416,4592.9,4591.9,4.839]
[1756326952182,0.4608,4593.8,4591.9,4.839]
[1756326952183,2.17718757,4593.1,4592.0,2.17770034]
[1756326952384,0.4608,4593.2,4591.9,4.839]
[1756326952612,0.4608,4593.2,4592.2,2.17760077]
[1756326952827,1.674,4594.0,4591.9,4.839]
[1756326953118,2.17684984,4593.8,4592.0,4.2246179]
[1756326953277,0.4608,4593.9,4592.1,3.20105693]
[1756326953480,0.4608,4593.9,4592.9,2.17727142]
[1756326953714,2.17662471,4594.3,4592.9,2.17727142]
[1756326953715,2.1368,4594.8,4593.0,0.02177226]
[1756326954012,0.1088,4594.3,4593.5,0.1088]
[1756326954212,0.1088,4594.3,4593.1,0.95307723]
[1756326954213,0.1088,4594.6,4594.0,0.1088]
[1756326954414,0.1088,4594.6,4594.0,2.28554665]
[1756326954616,0.1088,4594.6,4594.0,0.1088]
[1756326955007,2.17646802,4594.6,4593.4,2.17702623]
[1756326955185,0.792,4594.7,4593.5,0.02176989]
[1756326955524,0.022,4594.8,4593.0,2.40011839]
[1756326955825,0.022,4594.8,4593.9,2.17678426]
[1756326956121,0.022,4594.8,4593.8,2.17680417]
[1756326956303,0.022,4594.8,4593.3,0.02177084]
[1756326956485,0.022,4594.8,4593.4,0.20113105]
[1756326956680,0.022,4594.8,4593.6,2.17694183]
[1756326956907,0.022,4594.8,4593.7,0.20113105]
[1756326957107,2.19837451,4594.8,4593.7,2.17689441]
[1756326957321,0.022,4594.8,4593.5,3.0]
[1756326957614,0.022,4594.8,4593.7,2.17689175]
[1756326957804,0.022,4594.8,4593.5,2.17698171]
[1756326958005,0.022,4594.8,4593.6,0.2011948]
[1756326958191,0.022,4594.8,4593.9,2.17675967]
[1756326958393,0.022,4594.8,4593.2,0.3535]
[1756326958599,0.022,4594.8,4594.4,2.17651793]
[1756326958904,0.022,4594.8,4594.5,2.19825796]
[1756326959104,0.022,4594.8,4594.3,2.17656665]
[1756326959307,0.022,4594.8,4594.0,4.674]
[1756326959508,0.022,4594.8,4594.1,0.20114188]
[1756326959821,2.17643236,4594.7,4594.0,1.674]
[1756326960022,0.022,4594.8,4594.0,1.674]
[1756326960023,2.17646805,4594.6,4594.0,1.674]
[1756326960222,0.4608,4594.5,4591.8,0.3545]
[1756326960420,2.1767049,4594.1,4592.2,0.20123184]
[1756326960585,2.17706734,4593.4,4591.9,2.37897328]
[1756326960923,2.17699007,4593.5,4592.3,2.17752422]
[1756326961106,2.17698922,4593.5,4592.4,2.37872662]
[1756326961427,1.674,4593.8,4591.9,3.0]
[1756326961732,0.792,4594.2,4592.0,0.2230711]
[1756326961733,2.17680641,4593.9,4592.0,0.2230711]
[1756326962024,0.4608,4595.1,4592.2,3.0]
[1756326962191,2.96831482,4595.0,4592.3,5.75412613]
[1756326962383,0.002,4595.3,4592.4,1.34679247]
[1756326962697,0.002,4595.3,4593.0,3.792]
[1756326962887,0.002,4595.3,4593.3,0.792]
[1756326963081,0.002,4595.3,4593.1,1.89685016]
[1756326963082,0.002,4595.3,4594.7,2.17642065]
[1756326963386,0.002,4595.3,4594.7,2.37744632]
[1756326963602,0.002,4595.3,4595.2,2.17618384]
[1756326963897,0.002,4595.3,4595.2,2.37720951]
[1756326964282,0.002,4595.3,4595.2,10.21097134]
[1756326964537,0.002,4595.3,4595.2,10.18920951]
[1756326964685,0.002,4595.3,4595.2,5.17618384]
[1756326964885,0.002,4595.3,4595.2,5.48592281]
[1756326965504,2.1751446,4597.4,4595.2,5.81742281]
[1756326965730,2.1751446,4597.4,4595.3,0.53043897]
[1756326965937,2.1751446,4597.4,4595.2,5.17618384]
[1756326965938,2.1751446,4597.4,4597.3,0.1088]
[1756326966246,2.1751446,4597.4,4597.3,0.4163]
[1756326966401,0.02,4597.8,4597.7,2.17500054]
[1756326966584,0.02,4598.8,4598.7,2.17452758]
[1756326966785,0.02,4598.8,4598.7,4.674]
[1756326967030,0.02,4598.8,4598.4,0.1088]
[1756326967333,0.02,4598.8,4598.7,0.1088]
[1756326967789,0.4808,4598.8,4598.2,1.674]
[1756326967990,0.4808,4598.8,4598.2,1.7828]
[1756326968596,2.1745313,4598.7,4598.2,1.7828]
[1756326968802,0.4608,4598.6,4598.2,1.7828]
[1756326969000,0.4608,4598.5,4598.2,0.1088]
[1756326969207,0.5696,4598.5,4597.8,0.1088]
[1756326969398,0.02,4598.8,4597.7,3.02175]
[1756326969603,0.02,4598.8,4597.7,3.0]
[1756326969604,2.17470517,4598.4,4597.7,3.0]
[1756326969887,0.002,4597.9,4597.8,0.1088]
[1756326970084,0.4628,4597.9,4596.8,6.471]
[1756326970290,2.17511318,4597.5,4597.3,0.1088]
[1756326970525,0.4628,4597.9,4597.3,0.1088]
[1756326970526,2.63772346,4597.9,4597.3,0.1088]
[1756326970824,2.17508214,4597.6,4597.3,0.1088]
[1756326970986,0.4628,4597.9,4596.8,1.673]
[1756326970987,0.1088,4597.4,4596.8,1.673]
[1756326971190,0.1088,4597.6,4596.8,1.673]
[1756326971626,0.1088,4597.6,4594.9,2.17628755]
[1756326971627,0.1088,4597.1,4596.1,1.673]
[1756326971796,0.002,4597.9,4596.2,7.8167571]
[1756326971997,0.1088,4597.4,4596.8,0.1088]
[1756326972500,0.1088,4596.9,4596.0,0.1088]
[1756326972696,0.1088,4596.9,4595.6,1.673]
[1756326972697,0.1088,4596.1,4595.6,1.673]
[1756326972903,0.1088,4596.8,4596.2,0.1088]
[1756326973101,2.74505638,4596.8,4596.1,0.1088]
[1756326973298,0.4608,4596.8,4595.8,0.02]
[1756326973533,0.1088,4596.5,4595.8,0.1288]
[1756326973925,2.17566695,4596.3,4595.8,0.1288]
[1756326974090,2.17523848,4597.2,4595.8,0.1288]
[1756326974091,0.002,4598.4,4595.9,0.02175852]
[1756326974291,0.1088,4597.6,4596.8,0.1088]
[1756326974636,0.002,4598.4,4597.8,0.1088]
[1756326974928,0.002,4598.4,4597.8,9.96295323]
[1756326975092,0.002,4598.4,4597.8,11.46373125]
[1756326975534,0.002,4598.4,4597.8,11.48373125]
[1756326975727,0.002,4598.4,4597.8,11.77123125]
[1756326976120,0.002,4598.4,4597.8,6.69573125]
[1756326976426,0.002,4598.4,4597.8,11.48073125]
[1756326976795,0.002,4598.4,4597.8,5.30375323]
[1756326977126,0.002,4598.4,4597.8,3.1288]
[1756326977336,0.002,4598.4,4597.8,7.9118]
[1756326977535,0.002,4598.4,4597.8,10.08675323]
[1756326978045,0.002,4598.4,4597.8,10.08475323]
[1756326978203,0.002,4598.4,4597.8,3.1288]
[1756326978409,0.002,4598.4,4597.8,7.9088]
[1756326978860,0.4359,4597.9,4597.8,0.02]
[1756326979338,0.002,4597.9,4597.7,0.1088]
[1756326979644,0.002,4597.9,4597.6,4.777]
[1756326979819,0.002,4597.9,4597.6,4.8858]
[1756326980212,0.002,4597.9,4597.7,0.02175]
[1756326980428,0.002,4597.9,4597.8,6.84795323]
[1756326980631,0.002,4597.9,4597.8,7.24425323]
[1756326981345,0.002,4597.9,4597.8,7.44379864]
[1756326981521,0.002,4597.9,4597.8,7.15629864]
[1756326981852,1e-08,4597.9,4597.8,12.21679864]
[1756326982006,1e-08,4597.9,4597.8,14.49705656]
[1756326982207,1e-08,4597.9,4597.8,8.64455656]
[1756326982403,1e-08,4597.9,4597.8,13.41555656]
[1756326982909,1e-08,4597.9,4597.8,8.64455656]
[1756326983141,1e-08,4597.9,4597.8,13.41355656]
[1756326983445,1e-08,4597.9,4597.8,11.92529864]
[1756326983645,1e-08,4597.9,4597.8,7.15629864]
[1756326983945,1e-08,4597.9,4597.8,11.72475323]
[1756326984347,1e-08,4597.9,4597.8,13.00398654]
[1756326984548,1e-08,4597.9,4597.8,13.43938775]
[1756326985328,1e-08,4597.9,4597.8,14.51888775]
[1756326986145,1e-08,4597.9,4597.8,14.23138775]
[1756326986457,1e-08,4597.9,4597.8,14.51988775]
[1756326987042,1e-08,4597.9,4597.8,13.72788775]
[1756326987248,1e-08,4597.9,4597.8,13.43538775]
[1756326988359,1e-08,4598.4,4598.3,0.792]
[1756326988520,1e-08,4598.4,4598.3,10.94519721]
[1756326988727,1e-08,4598.4,4598.3,11.21095005]
[1756326988958,1e-08,4598.4,4598.3,10.92345005]
[1756326989121,1e-08,4598.4,4598.3,11.03225005]
[1756326989322,1e-08,4598.4,4598.3,12.35295146]
[1756326989528,1e-08,4598.4,4598.3,6.80395146]
[1756326989860,1e-08,4598.4,4598.3,10.23725005]
[1756326990163,1e-08,4598.4,4598.3,10.03651674]
[1756326990466,1e-08,4598.4,4598.3,0.1088]
[1756326990649,1e-08,4598.4,4598.3,4.8618]
[1756326990650,0.43390001,4598.4,4598.3,4.8618]
[1756326990838,0.43390001,4598.4,4598.3,4.753]
[1756326991159,0.43390001,4598.4,4598.3,0.1088]
[1756326991358,0.43390001,4598.4,4597.8,0.001]
[1756326991359,2.17471674,4598.3,4597.8,0.001]
[1756326991558,0.43390001,4598.4,4597.8,0.001]
[1756326991723,0.4339,4598.2,4597.9,4.75]
[1756326991928,1e-08,4598.4,4597.9,4.75]
[1756326991929,0.4339,4598.1,4597.9,4.75]
[1756326992262,1e-08,4598.4,4597.8,0.001]
[1756326992263,0.4339,4598.0,4597.8,0.001]
[1756326992428,0.4339,4597.9,4597.8,0.001]
[1756326994037,1e-08,4598.4,4597.8,0.001]
[1756326994237,1e-08,4598.4,4598.1,2.17478774]
[1756326994434,1e-08,4598.4,4598.3,5.17471674]
[1756326995158,1e-08,4598.4,4598.3,6.91771674]
[1756326995731,1e-08,4598.4,4598.3,2.17471674]
[1756326995931,1e-08,4598.4,4598.3,6.9394639]
[1756326996147,1e-08,4598.4,4598.3,8.1291419]
[1756326996689,1e-08,4598.9,4598.4,3.792]
[1756326996985,0.002,4599.9,4599.8,2.17400756]
[1756326997168,0.002,4599.9,4599.8,11.60674763]
[1756326997371,0.002,4599.9,4599.8,12.96309025]
[1756326997757,0.002,4599.9,4599.8,8.22409025]
[1756326997960,0.002,4599.9,4599.8,12.96109025]
[1756326998252,0.002,4600.4,4600.3,2.17377127]
[1756326998476,0.002,4600.4,4600.3,10.72450898]
[1756326998695,0.002,4600.4,4600.3,6.9305734]
[1756326998862,0.002,4600.4,4600.3,10.07673803]
[1756326999441,0.002,4600.4,4600.3,10.86873803]
[1756327000145,0.002,4600.4,4600.3,6.13273803]
[1756327000546,0.002,4600.4,4600.3,5.34073803]
[1756327000789,0.002,4600.4,4600.3,10.07273803]
[1756327001092,0.002,4600.4,4600.3,11.29739631]
[1756327001306,0.002,4600.4,4600.3,11.40619631]
[1756327002306,0.002,4600.4,4600.3,12.19819631]
[1756327003286,0.002,4600.4,4600.3,12.19219631]
[1756327003798,0.002,4600.4,4600.3,6.67419631]
[1756327004001,0.002,4600.4,4600.3,11.39919631]
[1756327004167,0.002,4600.4,4600.3,10.17253803]
[1756327004708,0.4359,4600.4,4600.3,5.44953803]
[1756327004911,0.4359,4600.4,4600.3,10.17253803]
[1756327005262,0.4359,4600.4,4600.3,7.8318]
[1756327005608,0.4359,4600.4,4600.3,4.8288]
[1756327005777,0.002,4600.4,4600.3,7.00257127]
[1756327005978,0.002,4600.4,4600.3,10.00257127]
[1756327006215,0.4359,4600.4,4600.3,7.8288]
[1756327006711,0.4359,4600.4,4600.3,7.8268]
[1756327007005,0.4359,4600.4,4600.3,4.8268]
[1756327007208,0.4359,4600.4,4600.3,4.8258]
[1756327007543,2.71844892,4600.4,4599.8,4.716]
[1756327007844,0.4327,4600.3,4599.7,0.1088]
[1756327008005,0.4327,4600.3,4598.3,2.88242516]
[1756327008006,0.1088,4599.8,4598.3,0.1088]
[1756327008208,0.1088,4599.8,4597.1,1.671]
[1756327008209,3.792,4599.5,4597.4,0.21]
[1756327008406,3.792,4599.5,4596.8,0.001]
[1756327008407,2.17495323,4597.8,4597.2,0.1088]
[1756327008609,0.1088,4597.9,4597.3,4.715]
[1756327008838,2.60765873,4597.8,4597.3,4.715]
[1756327009149,0.4327,4597.7,4597.3,4.715]
[1756327009439,0.4327,4598.5,4597.7,0.1088]
[1756327009587,0.4327,4598.9,4597.9,3.0]
[1756327009788,2.71593718,4598.9,4598.2,0.1088]
[1756327009989,0.4327,4598.9,4597.3,1.673]
[1756327010233,0.1088,4598.0,4597.3,1.673]
[1756327010435,2.60760593,4597.9,4597.4,3.0]
[1756327010638,0.4327,4597.8,4597.3,2.013]
[1756327010842,0.1088,4597.6,4597.3,0.001]
[1756327011021,0.27165028,4597.5,4596.8,0.001]
[1756327011257,2.17537905,4596.9,4596.8,0.001]
[1756327011598,2.60807905,4596.9,4596.8,0.001]
[1756327011793,0.1088,4596.9,4596.8,0.001]
[1756327012037,0.1088,4597.3,4596.8,0.001]
[1756327012247,0.4327,4597.7,4596.9,2.17537905]
[1756327012419,0.1088,4597.9,4597.3,2.17517479]
[1756327012601,0.1088,4597.9,4597.8,2.17495323]
[1756327012941,0.4327,4598.9,4597.5,3.0]
[1756327013232,0.1088,4598.4,4597.7,0.1088]
[1756327013627,0.4327,4598.3,4597.7,0.1088]
[1756327013945,0.1088,4597.8,4597.1,0.1088]
[1756327014127,0.4327,4597.7,4596.6,1.969]
[1756327014429,0.4327,4597.7,4596.4,0.1088]
[1756327014430,2.17537218,4597.0,4596.4,0.1088]
[1756327014739,0.1088,4597.1,4596.4,0.1088]
[1756327014908,2.60807905,4596.9,4595.8,0.1288]
[1756327015121,3.88929658,4596.9,4595.8,0.02]
[1756327015310,2.17585239,4595.9,4595.8,0.02]
[1756327015511,0.792,4595.8,4594.5,0.1088]
[1756327015742,0.1088,4594.9,4594.3,0.1088]
[1756327016114,0.5415,4594.9,4594.3,0.1088]
[1756327016525,0.5415,4594.9,4594.3,2.28538124]
[1756327017054,0.5415,4594.9,4592.8,0.02]
[1756327017055,0.792,4594.7,4592.8,0.02]
[1756327017212,0.792,4594.5,4592.8,0.02]
[1756327017418,1.672,4594.4,4592.9,2.17722765]
[1756327017627,4.2617488,4594.6,4592.8,0.02]
[1756327017628,0.4327,4594.6,4592.8,0.02]
[1756327017837,2.60921119,4594.6,4593.2,2.17708482]
[1756327018048,0.792,4594.4,4593.0,6.37]
[1756327018345,2.17671184,4594.1,4593.0,6.37]
[1756327018525,0.55517,4594.3,4593.0,4.672]
[1756327018710,0.55517,4594.3,4593.2,2.17713003]
[1756327018711,0.4327,4594.3,4593.2,2.17713003]
[1756327018914,0.4327,4594.3,4593.0,4.672]
[1756327019149,0.4327,4595.1,4593.1,0.02177178]
[1756327019315,0.792,4594.9,4593.3,5.17708054]
[1756327019513,0.792,4594.7,4593.0,1.672]
[1756327019714,2.17665879,4594.2,4593.1,3.0]
[1756327019916,2.17660631,4594.4,4593.0,1.672]
[1756327020115,2.17670541,4594.1,4593.1,3.0]
[1756327020314,0.4327,4594.0,4593.0,1.672]
[1756327020515,0.21767054,4594.1,4592.8,0.02]
[1756327020516,0.4327,4593.9,4592.8,0.02]
[1756327020746,0.4327,4593.9,4589.6,0.4593]
[1756327020747,0.792,4593.1,4590.6,0.16586361]
[1756327020911,0.792,4592.8,4589.9,0.055]
[1756327021114,3.0,4592.9,4590.0,0.02178649]
[1756327021115,0.792,4592.6,4590.0,0.02178649]
[1756327021347,0.792,4592.4,4590.0,0.02178649]
[1756327021549,0.2465,4592.5,4590.0,0.02178649]
[1756327021550,0.6792,4592.5,4590.7,3.0]
[1756327021775,0.6792,4592.5,4590.6,1.673]
[1756327021920,0.4327,4592.7,4591.0,2.1781416]
[1756327022254,0.4327,4592.7,4592.2,0.001]
[1756327022457,0.4327,4593.4,4592.7,2.17735709]
[1756327022658,0.4327,4594.2,4592.2,0.001]
[1756327023331,0.64327,4594.2,4593.3,2.17704069]
[1756327023534,0.64327,4594.2,4592.3,4.69]
[1756327023535,0.4327,4594.2,4592.7,3.85035392]
[1756327023724,1.673,4594.5,4592.7,3.85035392]
[1756327023725,2.17687189,4593.8,4592.8,2.17731525]
[1756327023925,0.4327,4593.7,4592.2,0.001]
[1756327024168,2.17718976,4593.1,4592.2,0.001]
[1756327024467,0.4327,4593.7,4592.2,0.001]
[1756327024626,0.4327,4593.7,4592.5,2.17745425]
[1756327024627,2.1769567,4593.6,4592.5,2.17745425]
[1756327024819,0.4327,4593.7,4592.2,0.001]
[1756327024820,0.4327,4593.7,4592.6,2.17740546]
[1756327025043,0.6936461,4593.7,4592.2,0.001]
[1756327025248,2.17722922,4593.0,4592.2,0.001]
[1756327025452,2.465,4593.6,4592.2,0.001]
[1756327025660,0.4327,4593.1,4592.2,0.001]
[1756327026154,1.673,4593.6,4592.4,2.17747118]
[1756327026326,1.673,4593.6,4592.2,0.001]
[1756327026327,0.4327,4593.5,4592.2,0.001]
[1756327026525,0.792,4593.4,4592.2,0.001]
[1756327026737,0.64327,4593.5,4592.2,0.001]
[1756327026738,2.17755808,4592.3,4592.2,0.001]
[1756327026937,2.17755808,4592.3,4591.8,0.021]
[1756327026938,2.17774777,4591.9,4591.8,0.021]
[1756327027150,3.07854777,4591.9,4591.8,0.021]
[1756327027373,0.792,4591.5,4590.8,0.021]
[1756327027662,0.5415,4591.9,4590.8,0.021]
[1756327027663,0.792,4591.8,4590.8,2.1992303]
[1756327027835,0.5415,4591.4,4590.8,0.021]
[1756327028042,2.71948492,4591.4,4590.8,0.021]
[1756327028344,3.51148492,4591.4,4590.8,0.021]
[1756327028550,2.97041193,4590.5,4590.4,0.001]
[1756327028759,2.97041193,4590.5,4589.9,0.001]
[1756327028760,2.97064923,4590.0,4589.9,0.001]
[1756327029370,3.40334923,4590.0,4589.9,0.001]
[1756327029873,0.4327,4590.0,4589.9,0.001]
[1756327030267,1.674,4590.5,4589.9,0.001]
[1756327030436,0.4327,4591.0,4589.9,0.001]
[1756327030437,0.792,4590.9,4589.9,0.001]
[1756327030637,3.4327,4591.0,4589.9,0.001]
[1756327030638,0.4327,4591.0,4589.9,0.001]
[1756327030838,2.24293973,4591.3,4589.9,0.001]
[1756327030839,3.85207097,4591.3,4589.9,0.001]
[1756327031039,2.1780798,4591.2,4590.1,2.17859814]
[1756327031239,1.674,4591.3,4590.0,2.17864923]
[1756327031444,1.674,4592.0,4589.9,3.001]
[1756327031641,0.55719025,4592.4,4590.0,0.34908]
[1756327031843,0.4327,4592.5,4590.2,2.17855431]
[1756327032143,0.34084669,4593.3,4590.2,2.17855431]
[1756327032144,0.4327,4593.3,4590.4,0.792]
[1756327032497,2.1769915,4593.5,4592.4,2.17750864]
[1756327032775,0.02,4593.8,4592.0,3.0]
[1756327033082,0.02,4593.8,4593.1,2.1771703]
[1756327033383,0.02,4593.8,4592.2,2.1776055]
[1756327033384,0.02,4593.8,4592.2,4.673]
[1756327033593,0.02,4593.8,4592.4,2.17751066]
[1756327033839,0.02,4593.8,4593.1,2.1771779]
[1756327034163,0.02,4593.8,4592.3,3.65107197]
[1756327034379,0.02,4593.8,4593.4,2.17700192]
[1756327034579,0.02,4593.8,4593.5,2.17697833]
[1756327034761,0.02,4593.8,4593.0,1.674]
[1756327034975,0.02,4593.8,4593.1,3.0]
[1756327035171,0.02,4593.8,4593.0,3.85119183]
[1756327035377,0.02,4593.8,4593.1,3.0]
[1756327035693,0.02,4593.8,4592.4,3.0]
[1756327035851,2.17700625,4593.5,4592.4,5.17747498]
[1756327036051,2.17704242,4593.4,4592.4,5.17747498]
[1756327036493,0.02,4593.8,4592.2,3.85156585]
[1756327036494,2.1770953,4593.3,4592.2,3.85156585]
[1756327036785,0.4527,4593.8,4592.2,2.29870433]
[1756327036989,2.17705689,4593.4,4592.4,2.17751007]
[1756327037348,0.4527,4593.8,4592.3,2.17755808]
[1756327037585,0.02,4593.8,4592.2,5.27692828]
[1756327037891,0.02,4593.8,4592.7,3.0]
[1756327038182,0.02,4593.8,4592.4,0.0217751]
[1756327038347,0.02,4593.8,4592.3,0.52769283]
[1756327038549,0.02,4593.8,4592.2,2.27692828]
[1756327038550,0.1088,4593.5,4592.9,0.1088]
[1756327038750,0.02,4593.8,4592.3,0.02277558]
[1756327038981,2.17704143,4593.4,4592.9,0.1088]
[1756327039283,2.17709559,4593.3,4592.9,0.1088]
[1756327039852,2.28582458,4593.5,4592.9,0.1088]
[1756327040096,0.1088,4593.5,4592.9,0.1088]
[1756327040295,0.4551,4593.4,4592.3,0.001]
[1756327040464,0.1088,4592.7,4592.3,0.001]
[1756327040665,2.17741584,4592.6,4592.3,0.001]
[1756327040861,2.17751066,4592.4,4592.3,0.001]
[1756327041061,0.1088,4592.4,4592.3,0.001]
[1756327041478,2.28631066,4592.4,4592.3,0.001]
[1756327041677,0.1088,4592.4,4592.3,0.001]
[1756327042075,2.28631066,4592.4,4592.3,0.001]
[1756327042270,0.1088,4592.4,4592.3,0.001]
[1756327042616,2.17740701,4592.7,4592.3,0.001]
[1756327042817,0.60286864,4592.7,4592.3,0.001]
[1756327042978,2.17751066,4592.4,4592.3,0.001]
[1756327043179,2.28631066,4592.4,4592.3,0.001]
[1756327043374,2.74141066,4592.4,4592.3,0.001]
[1756327044079,2.94373046,4592.4,4592.3,0.001]
[1756327045172,2.48863046,4592.4,4592.3,0.001]
[1756327045707,0.2023198,4592.4,4592.3,0.001]
[1756327046081,2.63261066,4592.4,4592.3,0.001]
[1756327046428,3.24264529,4592.4,4592.3,0.001]
[1756327046642,0.2027191,4592.4,4592.3,0.001]
[1756327046799,2.37963591,4593.7,4592.3,0.4653]
[1756327046999,0.20269103,4593.6,4592.3,0.4653]
[1756327047237,0.20269103,4593.5,4592.7,2.17734691]
[1756327047415,2.1968555,4593.8,4592.5,2.17742514]
[1756327047416,2.37977255,4593.4,4592.5,2.17742514]
[1756327047732,0.02,4593.8,4592.3,0.001]
[1756327047733,2.17713339,4593.2,4592.3,0.001]
[1756327047958,0.20269103,4593.1,4592.5,2.17745568]
[1756327048234,2.17695041,4593.6,4592.3,0.001]
[1756327048543,2.17732651,4592.8,4592.3,0.001]
[1756327048709,2.17716733,4593.2,4592.3,0.001]
[1756327048912,0.20275223,4593.1,4592.4,2.17750842]
[1756327049133,2.17731909,4592.9,4592.3,0.001]
[1756327049349,0.4751,4593.8,4592.3,0.001]
[1756327049350,0.20280535,4592.8,4592.3,0.001]
[1756327049521,2.17741584,4592.6,4592.3,0.001]
[1756327049722,2.17751066,4592.4,4592.3,0.001]
[1756327049922,2.38031601,4592.4,4592.3,0.001]
[1756327050156,3.62741601,4592.4,4592.3,0.001]
[1756327050461,2.96970034,4592.0,4591.9,1e-08]
[1756327050754,2.96993749,4591.5,4589.9,0.001]
[1756327051040,2.17859269,4590.2,4589.9,0.001]
[1756327051244,2.17864923,4590.0,4589.9,0.001]
[1756327051471,7.23940643,4590.0,4589.9,0.001]
[1756327051599,10.16050643,4590.0,4589.9,0.001]
[1756327051804,4.72850643,4590.0,4589.9,0.001]
[1756327052025,0.20289228,4590.0,4589.9,0.001]
[1756327052236,2.17864923,4590.0,4589.9,0.001]
[1756327052437,4.639,4591.1,4589.9,0.001]
[1756327052635,2.17864923,4590.0,4589.9,0.001]
[1756327053446,0.792,4591.0,4589.9,0.001]
[1756327053638,2.17842033,4590.5,4589.9,0.001]
[1756327053813,2.17864923,4590.0,4589.9,0.001]
[1756327054016,2.38141244,4590.0,4589.9,0.001]
[1756327054218,8.26351244,4590.0,4589.9,0.001]
[1756327054539,3.62851244,4590.0,4589.9,0.001]